bitfinex/quotes_ETHUSD_20250130
["timestamp","ask_amount","ask_price","bid_price","bid_amount"]
[1738256937045,3.05463,3273.8,3273.4,0.55]
[1738256938970,3.05463,3273.8,3273.5,0.5709853]
[1738256939282,3.0546,3273.8,3273.5,0.5709853]
[1738256939582,3.05441,3274.0,3273.6,0.55]
[1738256939735,6.05428,3274.1,3273.6,3.6047]
[1738256939940,3.05422,3274.2,3273.8,1.3387]
[1738256940265,3.0537,3274.8,3274.1,3.05427]
[1738256940578,3.05369,3274.8,3274.3,0.7887]
[1738256940875,3.05387,3274.6,3274.3,0.7887]
[1738256941080,3.05372,3274.7,3274.5,0.55]
[1738256941283,3.0538,3274.6,3274.5,0.55]
[1738256941875,3.05369,3274.8,3274.5,1.3313]
[1738256942336,3.05346,3275.0,3274.5,1.3313]
[1738256942537,3.0,3274.9,3274.5,1.3313]
[1738256942790,6.05357,3274.9,3274.5,1.3313]
[1738256942950,3.0,3274.9,3274.5,1.3313]
[1738256943151,3.05364,3274.8,3274.5,1.3313]
[1738256943351,3.05376,3274.7,3274.5,0.55]
[1738256943557,3.05376,3274.7,3274.6,8.93]
[1738256943773,3.05376,3274.7,3274.6,9.48]
[1738256944281,3.05359,3274.9,3274.7,0.55]
[1738256944480,3.05362,3274.8,3274.7,9.48]
[1738256944884,6.83282,3274.8,3274.7,8.93]
[1738256945586,3.05339,3275.1,3274.8,0.55]
[1738256945768,3.05312,3275.4,3274.8,4.60659]
[1738256946087,3.05333,3275.2,3274.8,10.483]
[1738256946292,3.05349,3275.0,3274.8,9.48]
[1738256946438,3.05352,3274.9,3274.8,9.48]
[1738256948546,3.05329,3275.2,3274.8,9.48]
[1738256948784,6.10702,3275.0,3274.8,9.48]
[1738256949091,3.0535,3275.0,3274.8,9.48]
[1738256949383,3.05352,3274.9,3274.8,9.48]
[1738256950399,3.05352,3274.9,3274.6,8.93]
[1738256950544,5.89366143,3274.7,3274.3,8.93]
[1738256950747,3.05399,3274.4,3274.3,8.93]
[1738256951008,3.05431,3274.1,3274.0,0.55]
[1738256951295,8.94862143,3274.1,3274.0,8.93]
[1738256952144,3.05455,3273.8,3273.7,0.47506925]
[1738256952348,3.05474,3273.6,3273.5,8.93]
[1738256954777,0.7833,3273.6,3273.1,8.93]
[1738256954974,3.05511,3273.2,3273.1,8.93]
[1738256956457,3.05511,3273.2,3272.4,0.7555]
[1738256956458,3.0,3273.3,3272.5,0.55]
[1738256956654,3.05542,3272.9,3272.5,0.55]
[1738256956893,6.1113,3272.7,3272.5,0.55]
[1738256957053,3.05563,3272.7,3272.5,0.55]
[1738256957491,2.83995143,3272.8,3272.1,0.812]
[1738256957807,3.0,3272.8,3272.4,0.55]
[1738256958006,3.0,3272.8,3272.4,0.965589]
[1738256958493,6.05549,3272.8,3272.4,0.965589]
[1738256958801,6.05549,3272.8,3272.4,0.55]
[1738256959303,3.05558,3272.7,3272.4,0.55]
[1738256959597,3.05558,3272.7,3272.2,0.55]
[1738256960689,3.05582,3272.5,3272.2,0.55]
[1738256961171,3.05592,3272.4,3272.2,0.55]
[1738256961350,3.05582,3272.5,3272.2,0.55]
[1738256961554,3.05595,3272.3,3271.8,1.3142]
[1738256961811,3.05595,3272.3,3271.8,3.30024786]
[1738256962102,3.05611,3272.2,3271.8,3.30024786]
[1738256962281,3.05595,3272.3,3271.8,0.7642]
[1738256962488,3.05625,3272.0,3271.7,8.93]
[1738256962655,3.05625,3272.0,3271.6,5.37]
[1738256963197,3.05626,3272.0,3271.7,0.55]
[1738256963599,3.05646,3271.8,3271.5,0.7642]
[1738256963751,3.05646,3271.8,3271.3,8.93]
[1738256963752,3.05646,3271.8,3271.3,3.05688]
[1738256963956,3.05646,3271.8,3271.3,4.39281706]
[1738256964771,3.05646,3271.8,3271.4,0.55]
[1738256964965,3.05655,3271.7,3271.4,0.55]
[1738256965166,3.05626,3272.0,3271.4,0.55]
[1738256965401,6.11258,3272.0,3271.4,0.55]
[1738256965695,3.05626,3272.0,3271.4,3.60677]
[1738256965899,3.05626,3272.0,3271.4,4.48315171]
[1738256966259,3.05626,3272.0,3271.4,1.42638171]
[1738256966462,3.05639,3271.9,3271.4,1.42638171]
[1738256966983,5.89600143,3272.2,3271.4,4.5136673]
[1738256967187,5.89600143,3272.2,3271.6,3.60651]
[1738256967371,5.89600143,3272.2,3271.6,0.55]
[1738256967573,3.0562,3272.1,3271.6,0.55]
[1738256968176,2.83995143,3272.2,3271.6,0.55]
[1738256968405,3.05626,3272.0,3271.6,0.55]
[1738256969687,3.05614,3272.1,3271.6,0.55]
[1738256969885,2.83995143,3272.2,3271.6,0.55]
[1738256970101,3.05639,3271.9,3271.6,0.55]
[1738256970603,3.05642,3271.8,3271.6,0.55]
[1738256971164,3.05631,3272.0,3271.6,0.55]
[1738256971487,3.05632,3271.9,3271.6,0.55]
[1738256974263,3.05616,3272.1,3271.6,0.55]
[1738256974614,3.05606,3272.2,3271.6,3.60653]
[1738256974783,3.05606,3272.2,3271.6,4.350461]
[1738256975192,3.05619,3272.1,3271.6,0.55]
[1738256975490,3.0,3272.3,3271.6,0.55]
[1738256975697,6.05602,3272.3,3271.7,3.0565]
[1738256976221,3.05614,3272.1,3271.6,3.60659]
[1738256976583,3.0,3272.2,3271.7,3.0565]
[1738256976801,3.05608,3272.2,3271.6,3.60659]
[1738256977094,3.05608,3272.2,3271.7,3.05651]
[1738256977405,3.05608,3272.2,3271.6,1.293946]
[1738256977610,3.05608,3272.2,3271.6,4.350506]
[1738256978430,3.0557,3272.6,3271.7,0.7816]
[1738256978661,3.05577,3272.5,3272.2,0.55]
[1738256980333,3.05595,3272.3,3271.8,0.8127]
[1738256980637,0.2145,3273.1,3271.7,8.93]
[1738256980638,3.05632,3271.9,3271.7,8.93]
[1738256980797,3.05632,3271.9,3271.2,0.7886]
[1738256980798,3.05677,3271.5,3271.2,0.7886]
[1738256981001,3.05679,3271.4,3271.2,0.7886]
[1738256981324,3.05672,3271.5,3271.2,0.7886]
[1738256981702,3.05679,3271.4,3271.2,0.7886]
[1738256981911,3.05679,3271.4,3271.3,1.02506925]
[1738256982302,3.05679,3271.4,3271.3,0.55]
[1738256983328,5.89658143,3271.6,3271.0,3.88616]
[1738256983534,5.89658143,3271.6,3271.1,1.244334]
[1738256983827,3.05671,3271.5,3271.1,0.55]
[1738256984192,3.05671,3271.5,3271.1,1.12128282]
[1738256984529,3.05663,3271.6,3271.1,1.12128282]
[1738256985188,3.05678,3271.5,3271.1,1.12128282]
[1738256985534,3.05678,3271.5,3271.1,0.55]
[1738256986357,3.05663,3271.6,3271.1,0.55]
[1738256986753,3.05663,3271.6,3271.3,0.55]
[1738256987357,3.05676,3271.5,3271.3,0.55]
[1738256987855,3.05679,3271.4,3271.3,0.55]
[1738256988356,5.89658143,3271.6,3271.3,0.55]
[1738256988565,3.05672,3271.5,3271.3,0.55]
[1738256989319,2.83995143,3271.9,3271.1,0.55]
[1738256989525,6.05643,3271.8,3271.2,3.05688]
[1738256989723,3.05651,3271.7,3271.2,3.500468]
[1738256990133,3.05668,3271.6,3271.0,3.88611]
[1738256990358,3.05668,3271.6,3271.1,3.05702]
[1738256990867,3.05668,3271.6,3271.2,0.55]
[1738256991186,3.0567,3271.5,3271.2,0.77885378]
[1738256991372,3.05668,3271.6,3271.2,0.77885378]
[1738256991777,6.11336,3271.6,3271.2,0.77885378]
[1738256991976,3.05668,3271.6,3271.2,0.77885378]
[1738256992135,6.11336,3271.6,3271.2,0.77885378]
[1738256992335,3.05668,3271.6,3271.2,0.77885378]
[1738256992546,3.05671,3271.5,3271.2,0.77885378]
[1738256993713,3.05671,3271.5,3271.2,0.55]
[1738256995153,3.05716,3271.0,3270.9,0.47506925]
[1738256995380,5.89711143,3271.0,3270.9,0.47506925]
[1738256995596,3.05708,3271.1,3270.9,0.47506925]
[1738256996875,3.05708,3271.1,3271.0,0.55]
[1738256997292,3.05708,3271.1,3270.8,0.55]
[1738256997530,3.0,3271.2,3270.8,1.24335733]
[1738256997735,3.0,3271.2,3271.0,0.55]
[1738256999315,3.05689,3271.3,3271.0,0.55]
[1738256999611,5.89660143,3271.6,3271.0,0.55]
[1738256999824,5.89658143,3271.6,3271.0,3.6071]
[1738257000121,5.89658143,3271.6,3271.1,0.43808]
[1738257000265,3.85856,3271.8,3271.1,0.43808]
[1738257000473,5.89601143,3272.2,3271.6,0.55]
[1738257000668,3.05606,3272.2,3271.8,0.55]
[1738257000916,3.0,3272.1,3271.8,0.55]
[1738257001095,2.83995143,3272.5,3271.8,0.988025]
[1738257001297,3.05584,3272.5,3272.0,0.55]
[1738257002482,3.05595,3272.3,3271.8,0.438025]
[1738257002701,3.05642,3271.8,3271.5,0.47506925]
[1738257002901,3.0566,3271.6,3271.5,0.47506925]
[1738257003279,3.0566,3271.6,3271.5,0.55]
[1738257004025,2.83995143,3271.6,3271.1,0.7646]
[1738257004171,3.05707,3271.1,3271.0,0.47506925]
[1738257005213,3.05707,3271.1,3270.8,0.7563]
[1738257005412,3.05707,3271.1,3270.4,0.7933]
[1738257005413,3.05726,3270.9,3270.4,0.7933]
[1738257005919,3.05744,3270.8,3270.4,0.7933]
[1738257006224,3.0572,3271.0,3270.4,0.7933]
[1738257006412,3.0572,3271.0,3270.4,3.85102]
[1738257006620,3.05733,3270.9,3270.5,0.55]
[1738257006773,3.05733,3270.9,3270.5,0.77863115]
[1738257006978,2.83995143,3271.3,3270.5,0.77863115]
[1738257006979,3.05717,3271.0,3270.5,0.99753283]
[1738257007415,6.05702,3271.2,3270.5,0.99753283]
[1738257007611,6.05702,3271.2,3270.7,0.55]
[1738257008112,3.05683,3271.4,3270.5,0.47810641]
[1738257008113,3.05683,3271.4,3270.9,3.60721]
[1738257008322,5.89659143,3271.6,3271.0,3.0571]
[1738257008475,5.89659143,3271.6,3271.0,3.802611]
[1738257009213,5.89659143,3271.6,3271.2,0.55]
[1738257009518,3.05643,3271.8,3271.4,0.55]
[1738257009519,3.05652,3271.7,3271.4,0.55]
[1738257010188,3.05643,3271.8,3271.4,0.55]
[1738257010389,5.89605143,3272.2,3271.6,3.05658]
[1738257010715,5.89574143,3272.5,3272.0,0.55]
[1738257011715,3.05588,3272.4,3272.0,0.55]
[1738257011915,3.05588,3272.4,3271.7,3.86058]
[1738257012216,3.05605,3272.2,3271.7,3.86058]
[1738257012410,3.05605,3272.2,3271.8,0.55]
[1738257012625,3.05588,3272.4,3271.8,4.0835438]
[1738257012999,3.05588,3272.4,3271.9,3.05631]
[1738257013207,2.83995143,3272.5,3271.9,3.05631]
[1738257013429,3.05572,3272.6,3272.1,3.05614]
[1738257013590,3.05561,3272.7,3272.3,0.55]
[1738257013791,3.0,3272.9,3272.3,4.044414]
[1738257014024,2.18746145,3273.1,3272.5,0.55]
[1738257014225,2.18746145,3273.1,3273.0,3.6053]
[1738257014597,3.0543,3274.1,3273.5,0.55]
[1738257014914,3.05427,3274.1,3273.4,0.55]
[1738257015113,3.05424,3274.2,3273.6,3.05472]
[1738257015318,5.89405143,3274.3,3273.6,3.05472]
[1738257015514,3.05421,3274.2,3273.7,0.55]
[1738257015719,5.89405143,3274.3,3273.7,0.55]
[1738257015720,5.89405143,3274.3,3273.9,0.55]
[1738257015916,3.0542,3274.2,3273.9,0.55]
[1738257016429,2.83995143,3274.3,3273.9,0.55]
[1738257016593,3.05392,3274.5,3273.9,0.55]
[1738257016791,3.05392,3274.5,3273.9,0.987114]
[1738257016792,3.0,3274.5,3273.9,0.987114]
[1738257016997,3.05391,3274.5,3273.9,0.987114]
[1738257017196,3.05391,3274.5,3274.0,0.55]
[1738257017798,3.05391,3274.5,3273.9,0.437114]
[1738257018138,3.05446,3273.9,3273.3,0.8086]
[1738257018294,3.05446,3273.9,3273.4,0.55]
[1738257019012,3.05435,3274.1,3273.4,3.6049]
[1738257019213,3.05435,3274.1,3273.6,0.55]
[1738257019412,3.05438,3274.0,3273.5,0.55]
[1738257019624,3.05446,3273.9,3273.5,0.55]
[1738257019940,3.44320687,3273.9,3273.3,0.8086]
[1738257020140,3.05462,3273.8,3273.4,0.55]
[1738257021342,3.05462,3273.8,3273.4,1.29687]
[1738257021542,6.10883,3274.0,3273.4,1.29687]
[1738257021738,3.0545,3273.9,3273.4,1.29687]
[1738257022239,3.0545,3273.9,3273.4,0.55]
[1738257022543,3.05465,3273.7,3273.4,0.55]
[1738257023029,3.05475,3273.6,3273.4,0.55]
[1738257023229,3.05465,3273.7,3273.4,0.55]
[1738257023802,3.05493,3273.4,3272.9,0.7944]
[1738257024116,3.05483,3273.5,3273.0,3.440262]
[1738257024645,3.44320687,3273.9,3273.0,0.384982]
[1738257024801,3.0553,3273.0,3272.6,0.7846]
[1738257025205,3.0,3273.4,3272.1,8.93]
[1738257025206,3.05554,3272.8,3272.3,0.7846]
[1738257025404,3.05572,3272.6,3271.9,0.8068]
[1738257025613,0.7545,3272.9,3271.9,0.8068]
[1738257025831,3.05603,3272.3,3271.9,0.8068]
[1738257026028,2.80603,3272.3,3271.9,0.8068]
[1738257026253,2.80603,3272.3,3272.0,0.55]
[1738257026606,3.05623,3272.1,3271.6,0.360658]
[1738257026931,3.05623,3272.1,3271.8,0.55]
[1738257027748,3.05623,3272.1,3271.7,0.6552658]
[1738257027948,3.05599,3272.3,3271.7,0.6552658]
[1738257028355,3.0,3272.4,3271.8,0.55]
[1738257028522,3.0,3272.4,3272.0,0.55]
[1738257029266,3.05601,3272.3,3271.8,0.55]
[1738257029446,3.05605,3272.2,3271.8,1.01223938]
[1738257029765,6.05593,3272.4,3271.8,1.01223938]
[1738257029925,3.0,3272.4,3271.8,1.01223938]
[1738257030125,3.05601,3272.3,3271.8,4.06865938]
[1738257030329,3.05601,3272.3,3271.8,1.01223938]
[1738257030749,3.0561,3272.2,3271.8,0.55]
[1738257030963,3.05623,3272.1,3271.8,0.55]
[1738257031317,3.05595,3272.3,3271.8,0.55]
[1738257031758,3.05622,3272.1,3271.8,0.55]
[1738257031973,3.05625,3272.0,3271.6,0.360658]
[1738257032263,3.05625,3272.0,3271.8,0.55]
[1738257032428,3.05657,3271.7,3271.1,0.7913]
[1738257032632,3.05675,3271.5,3271.1,0.7913]
[1738257033426,3.05675,3271.5,3271.2,0.55]
[1738257033627,3.05688,3271.3,3271.2,0.55]
[1738257034062,3.05675,3271.5,3271.2,0.55]
[1738257034266,3.05679,3271.5,3271.2,0.55]
[1738257034468,3.05661,3271.6,3271.3,0.05977049]
[1738257034676,3.05681,3271.4,3271.3,0.60977049]
[1738257034844,3.05681,3271.4,3271.1,0.7913]
[1738257034845,3.05692,3271.3,3271.1,0.7913]
[1738257035048,3.05681,3271.4,3271.0,0.55]
[1738257035257,3.05698,3271.2,3271.0,0.55]
[1738257035635,3.05691,3271.3,3271.0,0.55]
[1738257036094,3.05681,3271.4,3271.0,0.55]
[1738257036256,3.05681,3271.4,3271.1,0.436273]
[1738257037193,3.05681,3271.4,3271.0,0.55]
[1738257038043,3.05661,3271.6,3271.1,3.05707]
[1738257038246,3.82951,3272.2,3271.4,0.55]
[1738257038594,3.05586,3272.4,3271.9,1.3032]
[1738257038742,3.05601,3272.3,3271.9,1.3032]
[1738257038944,3.05586,3272.4,3271.9,1.3032]
[1738257039289,3.05523,3273.1,3272.4,0.55]
[1738257039453,3.05502,3273.3,3272.7,0.55]
[1738257039653,3.05513,3273.2,3272.7,0.55]
[1738257039855,3.44320687,3273.5,3272.7,0.55]
[1738257040082,3.05536,3273.0,3272.7,0.55]
[1738257040686,3.05516,3273.2,3272.7,0.55]
[1738257040987,3.0553,3273.0,3272.7,0.7221487]
[1738257041582,3.0,3273.4,3273.0,0.55]
[1738257041878,3.05457,3273.8,3273.3,0.55]
[1738257042396,3.05478,3273.6,3273.1,0.55]
[1738257042739,3.05478,3273.6,3272.7,0.1721487]
[1738257042740,3.0,3273.7,3272.7,0.1721487]
[1738257042999,3.05517,3273.2,3272.7,0.1721487]
[1738257043292,6.11037,3273.2,3272.8,0.55]
[1738257043457,3.05517,3273.2,3272.8,0.60886031]
[1738257043655,3.05517,3273.2,3272.8,1.07361521]
[1738257044555,3.05495,3273.4,3272.8,1.07361521]
[1738257044763,6.10996,3273.4,3272.8,4.12903521]
[1738257045100,3.05495,3273.4,3272.8,4.12903521]
[1738257045283,3.05504,3273.3,3272.8,4.12903521]
[1738257045446,3.05495,3273.4,3272.8,4.12903521]
[1738257045651,3.05502,3273.3,3272.8,4.12903521]
[1738257045901,3.05502,3273.3,3273.0,0.55]
[1738257046440,3.05502,3273.3,3273.1,0.05841048]
[1738257046752,3.05495,3273.4,3273.1,0.05841048]
[1738257046953,6.10996,3273.4,3273.1,0.05841048]
[1738257047153,3.05495,3273.4,3272.8,3.60548]
[1738257047381,3.0,3273.7,3273.3,0.55]
[1738257047882,6.05474,3273.6,3273.5,0.55]
[1738257048250,6.05474,3273.6,3273.5,0.60816586]
[1738257048649,6.05474,3273.6,3273.5,0.05816586]
[1738257048975,3.05502,3273.3,3272.8,0.55]
[1738257049161,3.05502,3273.3,3273.0,0.55]
[1738257049562,3.05502,3273.3,3273.2,0.55]
[1738257049982,3.05502,3273.3,3273.2,0.60834932]
[1738257051053,6.11012,3273.3,3273.0,0.55]
[1738257051396,3.05502,3273.3,3273.0,0.55]
[1738257052497,6.11012,3273.3,3273.0,0.55]
[1738257052901,5.84235656,3273.6,3272.8,0.55]
[1738257053204,3.05526,3273.1,3272.5,3.0557]
[1738257053499,3.05533,3273.0,3272.7,0.38666]
[1738257053812,3.05548,3272.8,3272.7,0.05865515]
[1738257054049,3.05533,3273.0,3272.7,0.05865515]
[1738257054190,3.05522,3273.1,3272.6,3.60559]
[1738257054371,3.05532,3273.0,3272.9,0.55]
[1738257054899,3.05516,3273.2,3272.9,0.05818808]
[1738257055855,3.0553,3273.0,3272.9,0.05818808]
[1738257056103,9.69455656,3273.0,3272.9,0.05818808]
[1738257056300,3.05594,3272.4,3271.9,0.7564]
[1738257056526,3.05594,3272.4,3272.1,0.55]
[1738257056674,2.84235656,3272.7,3272.1,0.55]
[1738257056675,3.05569,3272.6,3272.1,0.55]
[1738257056875,3.05577,3272.5,3272.3,0.55]
[1738257057158,3.05577,3272.5,3272.4,0.60676701]
[1738257057389,3.05567,3272.6,3272.5,0.55]
[1738257057827,3.05567,3272.6,3272.5,0.60670582]
[1738257058157,3.05551,3272.8,3272.5,0.60670582]
[1738257058911,3.05567,3272.6,3272.5,0.60670582]
[1738257060706,3.05551,3272.8,3272.5,0.60670582]
[1738257061157,3.05531,3273.0,3272.5,0.60670582]
[1738257061684,3.05531,3273.0,3272.5,0.9729554]
[1738257061841,3.05542,3272.9,3272.5,0.60670582]
[1738257062343,3.0,3272.9,3272.5,0.60670582]
[1738257062637,3.05567,3272.6,3272.5,0.60670582]
[1738257063341,3.05567,3272.6,3272.5,0.05670582]
[1738257063494,3.8088,3272.6,3271.8,6.1303]
[1738257063693,3.05632,3271.9,3271.8,5.37]
[1738257064136,3.0566,3271.6,3271.5,0.7603]
[1738257064314,3.0567,3271.5,3271.4,0.47506925]
[1738257065441,8.89905656,3271.5,3271.4,0.47506925]
[1738257065642,8.89905656,3271.5,3270.9,0.7569]
[1738257065643,5.84235656,3271.5,3270.9,0.7569]
[1738257065848,3.05708,3271.1,3271.0,0.55]
[1738257066206,3.057,3271.2,3271.0,0.55]
[1738257068346,3.05707,3271.1,3271.0,0.55]
[1738257068522,3.05717,3271.0,3270.5,0.7844]
[1738257068721,3.05707,3271.1,3270.7,0.55]
[1738257069613,3.05691,3271.3,3270.7,0.55]
[1738257069850,3.05709,3271.1,3270.7,0.55]
[1738257070061,3.05731,3270.9,3270.7,0.55]
[1738257070211,3.05731,3270.9,3270.5,0.7844]
[1738257070410,3.05731,3270.9,3270.6,0.55]
[1738257071149,3.05712,3271.1,3270.6,0.55]
[1738257071350,3.05719,3271.0,3270.6,0.55]
[1738257071843,3.05712,3271.1,3270.6,0.55]
[1738257072043,3.05694,3271.3,3270.8,0.55]
[1738257072247,3.05683,3271.4,3270.8,0.965743]
[1738257072457,3.05678,3271.5,3270.8,0.965743]
[1738257072751,3.05691,3271.3,3270.8,4.023093]
[1738257072904,6.11355,3271.5,3270.8,4.023093]
[1738257073109,3.0,3271.4,3270.8,4.023093]
[1738257073344,6.05682,3271.4,3270.9,0.7080523]
[1738257073745,3.05689,3271.3,3270.9,0.7080523]
[1738257074253,3.05689,3271.3,3270.8,0.55]
[1738257074426,3.0,3271.4,3270.8,0.55]
[1738257074627,6.0568,3271.4,3271.1,0.55]
[1738257074812,3.05689,3271.3,3271.1,0.55]
[1738257075015,3.05714,3271.1,3270.6,0.7614]
[1738257075252,3.05714,3271.1,3270.7,0.381902]
[1738257075412,3.05714,3271.1,3270.8,0.55]
[1738257076156,3.05725,3271.0,3270.8,0.55]
[1738257076560,3.0,3271.4,3270.6,0.7614]
[1738257076766,3.0574,3270.8,3270.3,0.7803]
[1738257076964,3.05746,3270.7,3270.4,0.55]
[1738257077115,3.05746,3270.7,3270.3,1.16412]
[1738257077749,3.05746,3270.7,3270.4,0.55]
[1738257078219,3.05721,3271.0,3270.4,0.55]
[1738257078559,3.05736,3270.8,3270.4,0.55]
[1738257078762,3.05722,3271.0,3270.6,0.55]
[1738257079315,3.05736,3270.8,3270.7,0.60281458]
[1738257081258,3.05736,3270.8,3270.7,0.05281458]
[1738257081659,3.05736,3270.8,3270.4,0.55]
[1738257081847,3.05722,3271.0,3270.7,0.05281458]
[1738257082052,3.05722,3271.0,3270.6,0.55]
[1738257082263,3.05722,3271.0,3270.8,0.05275594]
[1738257082469,3.05703,3271.2,3270.7,0.05281719]
[1738257082766,3.05703,3271.2,3270.6,3.968223]
[1738257082767,6.1141,3271.2,3271.0,0.55]
[1738257082939,3.05703,3271.2,3270.9,0.55]
[1738257083264,0.8177,3271.1,3271.0,0.05263346]
[1738257083472,3.87477,3271.1,3271.0,0.05263346]
[1738257083627,3.05727,3270.9,3270.4,0.55]
[1738257083826,3.05727,3270.9,3270.4,4.046541]
[1738257084063,3.05745,3270.7,3270.5,0.05127095]
[1738257084941,3.05727,3270.9,3270.6,0.55]
[1738257085137,6.1146,3270.9,3270.7,0.05115887]
[1738257085367,3.05735,3270.8,3270.7,0.60115887]
[1738257085683,3.05735,3270.8,3270.7,0.05115887]
[1738257086033,3.05744,3270.7,3270.4,0.55]
[1738257087969,3.05729,3270.9,3270.4,0.55]
[1738257087970,6.11462,3270.9,3270.4,0.55]
[1738257088167,3.05729,3270.9,3270.4,0.55]
[1738257088335,3.05735,3270.8,3270.4,0.55]
[1738257088672,3.05709,3271.1,3270.5,3.05759]
[1738257088973,3.05717,3271.0,3270.5,3.05759]
[1738257089176,3.0,3271.2,3270.5,3.05757]
[1738257089336,6.11425,3271.1,3270.5,3.05757]
[1738257089536,3.05711,3271.1,3270.5,3.05757]
[1738257089872,3.05711,3271.1,3270.7,0.55]
[1738257090071,6.05705,3271.2,3270.7,0.55]
[1738257090278,3.05709,3271.1,3270.7,0.55]
[1738257090434,3.05716,3271.0,3270.7,0.55]
[1738257091474,3.0,3271.2,3270.7,0.55]
[1738257091771,6.05704,3271.2,3270.7,0.55]
[1738257091935,3.0,3271.2,3270.7,4.31436079]
[1738257092135,3.05694,3271.3,3270.9,0.55]
[1738257092362,3.05671,3271.5,3270.9,3.60719]
[1738257092733,6.05683,3271.4,3270.9,3.60719]
[1738257093187,3.05695,3271.3,3270.9,0.55]
[1738257094469,3.05695,3271.3,3271.1,0.55]
[1738257094982,3.05695,3271.3,3271.2,0.60088136]
[1738257101498,3.82085,3271.3,3271.2,0.05088136]
[1738257101992,3.05716,3271.0,3270.4,4.36127925]
[1738257102197,3.05729,3270.9,3270.5,0.98612792]
[1738257103349,3.05729,3270.9,3270.7,0.55]
[1738257103795,3.05735,3270.8,3270.7,0.55]
[1738257104794,3.05782,3270.3,3270.1,0.47506925]
[1738257105002,3.05791,3270.2,3270.1,0.47506925]
[1738257106693,3.05791,3270.2,3269.7,0.809]
[1738257106694,3.05814,3270.0,3269.8,0.55]
[1738257109096,3.05762,3270.6,3269.8,0.55]
[1738257109282,3.05721,3271.0,3270.0,0.55]
[1738257109482,0.8235,3271.1,3270.3,1.3427]
[1738257109686,0.8235,3271.1,3270.5,0.55]
[1738257110193,3.0573,3270.9,3270.7,0.55]
[1738257110398,3.0573,3270.9,3270.6,0.04983705]
[1738257110694,3.0573,3270.9,3270.6,0.59983705]
[1738257110695,3.05744,3270.7,3270.6,0.59983705]
[1738257111298,3.05712,3271.1,3270.7,0.55]
[1738257111659,0.7754,3271.4,3270.6,0.04983705]
[1738257111855,3.05744,3270.7,3270.4,0.55]
[1738257112188,3.05759,3270.6,3270.4,0.55]
[1738257112371,3.05711,3271.1,3270.4,0.55]
[1738257112701,3.05711,3271.1,3270.4,0.990059]
[1738257112856,3.05716,3271.0,3270.4,0.55]
[1738257114157,3.05711,3271.1,3270.4,3.60765]
[1738257114358,3.05692,3271.3,3270.5,3.05763]
[1738257114556,3.05692,3271.3,3270.7,0.55]
[1738257114557,3.05706,3271.2,3270.7,0.55]
[1738257114792,3.05718,3271.0,3270.5,0.55]
[1738257114955,3.05739,3270.8,3270.5,0.55]
[1738257115159,2.84235656,3271.3,3270.0,0.57077552]
[1738257115160,3.05707,3271.1,3270.0,0.57077552]
[1738257115399,3.05769,3270.5,3270.0,1.37077552]
[1738257115697,3.05769,3270.5,3270.1,0.55]
[1738257116319,3.05773,3270.4,3270.1,0.55]
[1738257117107,3.05773,3270.4,3270.1,0.74207755]
[1738257117415,3.05757,3270.6,3270.1,0.74207755]
[1738257117763,3.05747,3270.7,3270.2,3.05789]
[1738257118160,3.05739,3270.8,3270.1,0.74207755]
[1738257118161,3.05754,3270.6,3270.1,0.74207755]
[1738257118378,3.05754,3270.6,3270.1,3.80005755]
[1738257118577,3.05754,3270.6,3270.2,0.76581576]
[1738257118781,3.05754,3270.6,3270.1,0.74207755]
[1738257119510,6.11483,3270.8,3270.1,3.80002755]
[1738257119709,3.05739,3270.8,3270.1,3.80002755]
[1738257119907,3.05751,3270.7,3270.1,3.80002755]
[1738257120418,3.05739,3270.8,3270.1,0.74207755]
[1738257120583,3.05739,3270.8,3270.2,3.51789976]
[1738257120905,3.0,3270.9,3270.4,0.8112]
[1738257121103,3.0,3270.9,3270.5,0.55]
[1738257121313,0.8127,3271.4,3270.5,0.55]
[1738257121603,3.05721,3271.0,3270.5,0.55]
[1738257122263,3.05733,3270.9,3270.5,0.55]
[1738257122548,6.05705,3271.2,3270.5,0.55]
[1738257122549,3.05719,3271.0,3270.5,1.297675]
[1738257123715,3.05705,3271.2,3270.5,0.55]
[1738257123716,3.05726,3270.9,3270.5,0.55]
[1738257124042,3.05735,3270.8,3270.7,0.55]
[1738257124545,3.05735,3270.8,3270.7,0.5997237]
[1738257124744,3.05735,3270.8,3270.7,0.0497237]
[1738257125043,3.82485,3270.8,3270.7,0.0497237]
[1738257125242,3.775,3270.8,3270.0,0.57077552]
[1738257125455,3.05801,3270.1,3270.0,1.12077552]
[1738257126247,3.0579,3270.3,3270.1,0.55]
[1738257126455,3.05791,3270.2,3270.1,0.55]
[1738257127007,3.05801,3270.1,3270.0,0.57077552]
[1738257127209,3.05801,3270.1,3269.8,0.7775]
[1738257127751,2.84235656,3270.7,3269.5,0.57077552]
[1738257127911,3.0581,3270.0,3269.5,4.44933552]
[1738257128111,3.0581,3270.0,3269.5,5.20013907]
[1738257128511,3.0581,3270.0,3269.6,0.8355823]
[1738257130019,2.84235656,3270.7,3269.7,0.2855823]
[1738257130316,3.05796,3270.2,3269.8,0.55]
[1738257130545,3.0,3270.3,3269.8,0.55]